[Event "6th Porticcio Open 2019"]
[Site "Porticcio"]
[Date "2019.07.04"]
[Round "7.2"]
[White "Sadhwani, Raunak"]
[Black "Kirk, Ezra"]
[Result "1-0"]
[ECO "A40"]
[WhiteElo "2482"]
[BlackElo "2428"]
[Annotator "ChessBase"]
[PlyCount "97"]
[EventDate "2019.06.23"]
[EventType "swiss"]
[EventCountry "FRA"]
[SourceTitle "playchess.com"]
[Source "ChessBase"]
[SourceQuality "1"]
[TimeControl "5400+30"]

1. d4 {[%emt 0:00:00]} Nf6 {[%emt 0:00:53]} 2. c4 {[%emt 0:00:00]} e6 {[%emt 0:00:28]} 3. g3 {[%emt 0:00:00]} Bb4+ {[%emt 0:02:26]} 4. Bd2 {[%emt 0:00:20]} Qe7 {[%emt 0:03:02]} 5. Bg2 {[%emt 0:00:33]} O-O {[%emt 0:01:46]} 6. Nc3 {[%emt 0:03:06]} d6 {[%emt 0:06:09]} 7. Nf3 {[%emt 0:02:36]} e5 {[%emt 0:07:05]} 8. O-O {[%emt 0:01:03]} c6 {[%emt 0:06:48]} 9. Qa4 {[%emt 0:04:01]} Bxc3 {[%emt 0:02:07]} 10. Bxc3 {[%emt 0:03:34]} e4 {[%emt 0:02:08]} 11. Ne1 {[%emt 0:02:16]} Nbd7 {[%emt 0:01:00]} 12. Qd1 {[%emt 0:04:15]} Re8 {[%emt 0:04:27]} 13. Nc2 {[%emt 0:01:34]} Nf8 {[%emt 0:00:08]} 14. d5 {[%emt 0:01:03]} c5 {[%emt 0:03:16]} 15. b4 {[%emt 0:04:27]} b6 {[%emt 0:01:09]} 16. a4 {[%emt 0:01:58]} Ng6 {[%emt 0:05:00]} 17. a5 {[%emt 0:00:05]} Rb8 {[%emt 0:07:21]} 18. axb6 {[%emt 0:06:21]} axb6 {[%emt 0:00:08]} 19. Ne3 {[%emt 0:00:23]} Ng4 {[%emt 0:03:33]} 20. Nxg4 {[%emt 0:02:24]} Bxg4 {[%emt 0:00:05]} 21. Qc2 {[%emt 0:00:53]} Bf5 {[%emt 0:04:42]} 22. Ra6 {[%emt 0:02:08]} Bc8 {[%emt 0:05:06]} 23. Ra3 {[%emt 0:00:19]} f5 {[%emt 0:06:08]} 24. Rb1 {[%emt 0:01:30]} Rb7 {[%emt 0:02:20]} 25. Ra8 {[%emt 0:01:14]} Ne5 {[%emt 0:08:17]} 26. Qa2 {[%emt 0:01:02]} Nd7 {[%emt 0:11:02]} 27. Bh3 {[%emt 0:02:11]} Rf8 {[%emt 0:00:56]} 28. Bxf5 {[%emt 0:01:00]} Rxf5 {[%emt 0:00:49]} 29. Rxc8+ {[%emt 0:00:05]} Nf8 {[%emt 0:00:45]} 30. Qa6 {[%emt 0:02:52]} Rf7 {[%emt 0:03:28]} 31. Bd2 {[%emt 0:02:03]} cxb4 {[%emt 0:01:06]} 32. Rxb4 {[%emt 0:02:07]} Ra7 {[%emt 0:00:05]} 33. Qxb6 {[%emt 0:00:24]} Ra2 {[%emt 0:00:17]} 34. Rb2 {[%emt 0:01:13]} Ra1+ {[%emt 0:00:42]} 35. Rb1 {[%emt 0:00:50]} Rxb1+ {[%emt 0:01:16]} 36. Qxb1 {[%emt 0:00:06]} h5 {[%emt 0:00:21]} 37. h4 {[%emt 0:02:52]} Qd7 {[%emt 0:01:12]} 38. Ra8 {[%emt 0:01:05]} Qg4 {[%emt 0:00:26]} 39. Be3 {[%emt 0:04:26]} Qxe2 {[%emt 0:00:25]} 40. c5 {[%emt 0:00:03]} dxc5 {[%emt 0:00:43]} 41. Bxc5 {[%emt 0:00:09]} Qc4 {[%emt 0:00:48]} 42. Qb4 {[%emt 0:09:50]} Qxd5 {[%emt 0:00:09]} 43. Rxf8+ {[%emt 0:02:52]} Rxf8 {[%emt 0:00:05]} 44. Bxf8 {[%emt 0:00:05]} e3 {[%emt 0:00:08]} 45. fxe3 {[%emt 0:03:15]} Qd1+ {[%emt 0:00:06]} 46. Kf2 {[%emt 0:00:36]} Qc2+ {[%emt 0:00:37]} 47. Kf3 {[%emt 0:00:37]} Qc6+ {[%emt 0:00:29]} 48. e4 {[%emt 0:01:32]} Qc1 {[%emt 0:00:27]} 49. Bc5 {[%emt 0:00:49]} 1-0

[Event "6th Porticcio Open 2019"]
[Site "Porticcio"]
[Date "2019.07.04"]
[Round "7.3"]
[White "Prithu Gupta"]
[Black "Kovchan, Alexander"]
[Result "1/2-1/2"]
[ECO "A16"]
[WhiteElo "2470"]
[BlackElo "2566"]
[Annotator "ChessBase"]
[PlyCount "72"]
[EventDate "2019.06.23"]
[EventType "swiss"]
[EventCountry "FRA"]
[SourceTitle "playchess.com"]
[Source "ChessBase"]
[SourceQuality "1"]
[TimeControl "5400+30"]

1. c4 {[%emt 0:03:31]} Nf6 {[%emt 0:00:00]} 2. Nc3 {[%emt 0:00:20]} d5 {[%emt 0:00:00]} 3. cxd5 {[%emt 0:00:09]} Nxd5 {[%emt 0:00:00]} 4. g3 {[%emt 0:00:08]} e5 {[%emt 0:04:54]} 5. Bg2 {[%emt 0:00:05]} Nxc3 {[%emt 0:01:40]} 6. bxc3 {[%emt 0:00:10]} c5 {[%emt 0:00:19]} 7. Nf3 {[%emt 0:00:54]} Nc6 {[%emt 0:00:32]} 8. O-O {[%emt 0:00:05]} Be7 {[%emt 0:00:37]} 9. d4 {[%emt 0:00:05]} exd4 {[%emt 0:02:18]} 10. cxd4 {[%emt 0:00:03]} cxd4 {[%emt 0:11:31]} 11. Bb2 {[%emt 0:00:05]} Bf6 {[%emt 0:02:05]} 12. Ba3 {[%emt 0:00:05]} Be7 {[%emt 0:03:21]} 13. Bb2 {[%emt 0:00:10]} Bf6 {[%emt 0:00:11]} 14. Ba3 {[%emt 0:00:05]} Be7 {[%emt 0:00:07]} 15. Bxe7 {[%emt 0:00:04]} Qxe7 {[%emt 0:00:21]} 16. Nxd4 {[%emt 0:00:04]} Nxd4 {[%emt 0:00:18]} 17. Qxd4 {[%emt 0:00:05]} O-O {[%emt 0:00:06]} 18. a4 {[%emt 0:00:07]} Rd8 {[%emt 0:02:51]} 19. Qe4 {[%emt 0:10:39]} Qxe4 {[%emt 0:06:02]} 20. Bxe4 {[%emt 0:00:02]} Rb8 {[%emt 0:00:47]} 21. Rfd1 {[%emt 0:03:28]} Bd7 {[%emt 0:04:44]} 22. a5 {[%emt 0:01:28]} Bb5 {[%emt 0:06:05]} 23. Bxb7 {[%emt 0:05:23]} Bxe2 {[%emt 0:00:52]} 24. Rxd8+ {[%emt 0:03:25]} Rxd8 {[%emt 0:00:03]} 25. Re1 {[%emt 0:04:06]} Rd1 {[%emt 0:01:23]} 26. Rxd1 {[%emt 0:00:05]} Bxd1 {[%emt 0:00:05]} 27. f4 {[%emt 0:00:05]} Kf8 {[%emt 0:00:04]} 28. Kf2 {[%emt 0:00:04]} Ke7 {[%emt 0:00:04]} 29. Ke3 {[%emt 0:00:04]} Kd6 {[%emt 0:00:04]} 30. Kd4 {[%emt 0:00:04]} f6 {[%emt 0:01:14]} 31. Be4 {[%emt 0:00:39]} h6 {[%emt 0:00:08]} 32. h4 {[%emt 0:00:57]} Be2 {[%emt 0:01:38]} 33. Bg2 {[%emt 0:00:17]} Bb5 {[%emt 0:00:47]} 34. Be4 {[%emt 0:00:20]} Be2 {[%emt 0:00:21]} 35. Bg2 {[%emt 0:00:04]} Bb5 {[%emt 0:00:07]} 36. Be4 {[%emt 0:00:03]} Be2 {[%emt 0:00:08]} 1/2-1/2

[Event "6th Porticcio Open 2019"]
[Site "Porticcio"]
[Date "2019.07.04"]
[Round "7.7"]
[White "Krasenkow, Michal"]
[Black "Can, Isik"]
[Result "1-0"]
[ECO "D10"]
[WhiteElo "2620"]
[BlackElo "2379"]
[Annotator "ChessBase"]
[PlyCount "61"]
[EventDate "2019.06.23"]
[EventType "swiss"]
[EventCountry "FRA"]
[SourceTitle "playchess.com"]
[Source "ChessBase"]
[SourceQuality "1"]
[TimeControl "5400+30"]

1. d4 {[%emt 0:00:00]} d5 {[%emt 0:00:00]} 2. c4 {[%emt 0:00:00]} c6 {[%emt 0:00:00]} 3. Nc3 {[%emt 0:00:00]} Nf6 {[%emt 0:00:00]} 4. e3 {[%emt 0:00:00]} Bf5 {[%emt 0:00:00]} 5. cxd5 {[%emt 0:00:01]} cxd5 {[%emt 0:00:09]} 6. Qb3 {[%emt 0:00:04]} Nc6 {[%emt 0:00:08]} 7. Qxb7 {[%emt 0:00:03]} Bd7 {[%emt 0:00:05]} 8. Qb3 {[%emt 0:00:05]} Rb8 {[%emt 0:00:07]} 9. Qd1 {[%emt 0:00:03]} e5 {[%emt 0:00:05]} 10. dxe5 {[%emt 0:00:04]} Nxe5 {[%emt 0:00:06]} 11. Nge2 {[%emt 0:00:03]} Bc5 {[%emt 0:07:32]} 12. Nd4 {[%emt 0:00:15]} Ne4 {[%emt 0:14:04]} 13. Bb5 {[%emt 0:12:13]} Bxb5 {[%emt 0:05:55]} 14. Ndxb5 {[%emt 0:00:14]} Rxb5 {[%emt 0:00:12]} 15. Nxb5 {[%emt 0:00:10]} Bb4+ {[%emt 0:00:06]} 16. Kf1 {[%emt 0:01:57]} Qh4 {[%emt 0:03:40]} 17. Qe2 {[%emt 0:11:39]} O-O {[%emt 0:03:00]} 18. a3 {[%emt 0:07:17]} Ba5 {[%emt 0:14:39]} 19. Nd4 {[%emt 0:07:10]} Ng4 {[%emt 0:20:12]} 20. Nf5 {[%emt 0:10:34]} Qg5 {[%emt 0:05:18]} 21. Ne7+ {[%emt 0:07:37]} Kh8 {[%emt 0:02:18]} 22. f4 {[%emt 0:10:36]} Qxe7 {[%emt 0:07:06]} 23. Qxg4 {[%emt 0:00:14]} d4 {[%emt 0:00:11]} 24. exd4 {[%emt 0:02:10]} Re8 {[%emt 0:03:58]} 25. Qd1 {[%emt 0:05:41]} Qh4 {[%emt 0:06:21]} 26. Be3 {[%emt 0:00:09]} g5 {[%emt 0:03:50]} 27. fxg5 {[%emt 0:10:04]} Bd2 {[%emt 0:02:35]} 28. Qf3 {[%emt 0:01:03]} Kg8 {[%emt 0:00:01]} 29. Rd1 {[%emt 0:03:57]} Nxg5 {[%emt 0:00:29]} 30. Qf2 {[%emt 0:00:59]} Qg4 {[%emt 0:00:34]} 31. Rxd2 1-0

[Event "6th Porticcio Open 2019"]
[Site "Porticcio"]
[Date "2019.07.04"]
[Round "7.8"]
[White "Van Wely, Loek"]
[Black "Boyer, Mahel"]
[Result "0-1"]
[ECO "A67"]
[WhiteElo "2604"]
[BlackElo "2295"]
[Annotator "ChessBase"]
[PlyCount "150"]
[EventDate "2019.06.23"]
[EventType "swiss"]
[EventCountry "FRA"]
[SourceTitle "playchess.com"]
[Source "ChessBase"]
[SourceQuality "1"]
[TimeControl "5400+30"]

1. d4 {[%emt 0:01:16]} Nf6 {[%emt 0:00:00]} 2. c4 {[%emt 0:00:06]} c5 {[%emt 0:00:00]} 3. d5 {[%emt 0:00:08]} e6 {[%emt 0:00:00]} 4. Nc3 {[%emt 0:00:09]} exd5 {[%emt 0:00:00]} 5. cxd5 {[%emt 0:00:08]} d6 {[%emt 0:00:00]} 6. e4 {[%emt 0:00:07]} g6 {[%emt 0:00:00]} 7. f4 {[%emt 0:00:06]} Bg7 {[%emt 0:00:00]} 8. Bb5+ {[%emt 0:00:06]} Nfd7 {[%emt 0:00:03]} 9. Bd3 {[%emt 0:00:09]} O-O {[%emt 0:04:42]} 10. Nf3 {[%emt 0:00:40]} Qa5 {[%emt 0:00:05]} 11. Bd2 {[%emt 0:05:54]} Na6 {[%emt 0:02:20]} 12. a3 {[%emt 0:14:53]} Re8 {[%emt 0:07:10]} 13. Rb1 {[%emt 0:15:18]} Nf6 {[%emt 0:13:53]} 14. O-O {[%emt 0:10:53]} c4 {[%emt 0:02:01]} 15. Bc2 {[%emt 0:00:11]} b5 {[%emt 0:04:04]} 16. Kh1 {[%emt 0:04:27]} Qb6 {[%emt 0:04:51]} 17. Qe1 {[%emt 0:07:35]} Nc5 {[%emt 0:04:24]} 18. Be3 {[%emt 0:00:50]} Bb7 {[%emt 0:08:18]} 19. Rd1 {[%emt 0:03:14]} a6 {[%emt 0:08:10]} 20. e5 {[%emt 0:09:10]} dxe5 {[%emt 0:08:14]} 21. fxe5 {[%emt 0:00:25]} Ng4 {[%emt 0:00:03]} 22. Bd4 {[%emt 0:04:20]} Nxe5 {[%emt 0:01:02]} 23. Nxe5 {[%emt 0:07:16]} Bxe5 {[%emt 0:03:49]} 24. Bxe5 {[%emt 0:05:15]} Nd7 {[%emt 0:00:25]} 25. Qh4 {[%emt 0:00:24]} Rxe5 {[%emt 0:00:57]} 26. Ne4 {[%emt 0:05:31]} Bxd5 {[%emt 0:04:54]} 27. Ng5 {[%emt 0:00:21]} Nf8 {[%emt 0:00:50]} 28. Qf4 {[%emt 0:01:21]} f6 {[%emt 0:00:24]} 29. Nf3 {[%emt 0:01:37]} Bxf3 {[%emt 0:00:39]} 30. Qxf3 Rae8 {[%emt 0:00:04]} 31. b3 {[%emt 0:00:40]} cxb3 {[%emt 0:00:27]} 32. Bxb3+ {[%emt 0:00:40]} Kg7 {[%emt 0:00:02]} 33. Rc1 {[%emt 0:00:35]} Rf5 {[%emt 0:02:14]} 34. Qc3 {[%emt 0:00:08]} Rxf1+ {[%emt 0:00:10]} 35. Rxf1 {[%emt 0:00:01]} Nd7 {[%emt 0:03:22]} 36. h3 Ne5 {[%emt 0:00:27]} 37. Rc1 {[%emt 0:00:57]} Rd8 {[%emt 0:00:27]} 38. Qb4 {[%emt 0:01:38]} Qd6 {[%emt 0:04:59]} 39. Qa5 {[%emt 0:00:01]} Rd7 {[%emt 0:00:21]} 40. Rc8 {[%emt 0:00:30]} Nd3 {[%emt 0:00:18]} 41. Qd2 {[%emt 0:01:29]} Qf4 {[%emt 0:00:20]} 42. Qxf4 {[%emt 0:01:31]} Nxf4 {[%emt 0:00:01]} 43. a4 {[%emt 0:00:31]} Rd3 {[%emt 0:01:30]} 44. Rc7+ {[%emt 0:00:27]} Kh6 {[%emt 0:01:10]} 45. Bg8 {[%emt 0:00:09]} bxa4 {[%emt 0:01:01]} 46. Rxh7+ {[%emt 0:00:45]} Kg5 {[%emt 0:00:02]} 47. Ra7 {[%emt 0:00:43]} Kh4 {[%emt 0:02:03]} 48. Kh2 {[%emt 0:00:17]} Rd2 {[%emt 0:00:01]} 49. Rh7+ {[%emt 0:00:12]} Kg5 {[%emt 0:00:03]} 50. Kg3 {[%emt 0:00:14]} Rxg2+ {[%emt 0:01:18]} 51. Kf3 {[%emt 0:00:01]} Rc2 {[%emt 0:00:09]} 52. h4+ {[%emt 0:00:43]} Kf5 {[%emt 0:00:04]} 53. Ra7 {[%emt 0:00:08]} Rc3+ {[%emt 0:00:12]} 54. Kf2 {[%emt 0:00:04]} Nd3+ {[%emt 0:03:42]} 55. Ke3 {[%emt 0:02:14]} Nb4+ {[%emt 0:00:09]} 56. Kd4 {[%emt 0:00:11]} Nc6+ {[%emt 0:01:41]} 57. Kxc3 {[%emt 0:00:02]} Nxa7 {[%emt 0:00:04]} 58. Bh7 {[%emt 0:00:37]} Nb5+ {[%emt 0:02:04]} 59. Kb4 {[%emt 0:00:02]} a3 {[%emt 0:01:04]} 60. Kb3 {[%emt 0:00:54]} Kg4 {[%emt 0:01:59]} 61. Bxg6 {[%emt 0:00:05]} Kxh4 {[%emt 0:00:04]} 62. Be4 {[%emt 0:00:38]} Kg4 {[%emt 0:01:33]} 63. Bb7 {[%emt 0:00:40]} Nc7 {[%emt 0:00:04]} 64. Kxa3 {[%emt 0:00:10]} f5 {[%emt 0:00:02]} 65. Bc8 {[%emt 0:01:03]} Kg5 {[%emt 0:00:02]} 66. Kb4 {[%emt 0:00:44]} f4 {[%emt 0:00:02]} 67. Kc5 {[%emt 0:01:16]} f3 {[%emt 0:00:13]} 68. Kb6 {[%emt 0:00:35]} f2 {[%emt 0:00:04]} 69. Bh3 {[%emt 0:00:06]} Kh4 {[%emt 0:00:30]} 70. Bf1 {[%emt 0:00:04]} Kg3 {[%emt 0:00:08]} 71. Bc4 {[%emt 0:00:16]} Kg2 {[%emt 0:01:10]} 72. Kxc7 {[%emt 0:00:13]} a5 {[%emt 0:00:01]} 73. Kb6 {[%emt 0:00:10]} a4 {[%emt 0:00:03]} 74. Kc5 {[%emt 0:00:06]} a3 {[%emt 0:00:02]} 75. Kd4 {[%emt 0:00:12]} a2 {[%emt 0:00:07]} 0-1

[Event "6th Porticcio Open 2019"]
[Site "Porticcio"]
[Date "2019.07.05"]
[Round "8.1"]
[White "Sadhwani, Raunak"]
[Black "Lagarde, Maxime"]
[Result "1/2-1/2"]
[ECO "A34"]
[WhiteElo "2482"]
[BlackElo "2599"]
[Annotator "ChessBase"]
[PlyCount "111"]
[EventDate "2019.06.23"]
[EventType "swiss"]
[EventCountry "FRA"]
[SourceTitle "playchess.com"]
[Source "ChessBase"]
[SourceQuality "1"]
[TimeControl "5400+30"]

1. Nf3 {[%emt 0:00:00]} c5 {[%emt 0:09:36]} 2. c4 {[%emt 0:00:00]} Nf6 {[%emt 0:00:26]} 3. Nc3 {[%emt 0:00:00]} d5 {[%emt 0:00:15]} 4. cxd5 {[%emt 0:00:00]} Nxd5 {[%emt 0:00:02]} 5. e4 {[%emt 0:00:00]} Nb4 {[%emt 0:01:26]} 6. Bc4 {[%emt 0:00:07]} Nd3+ {[%emt 0:00:21]} 7. Ke2 {[%emt 0:00:05]} Nf4+ {[%emt 0:00:18]} 8. Kf1 {[%emt 0:00:05]} Ne6 {[%emt 0:00:34]} 9. Ne5 {[%emt 0:00:07]} Nc6 {[%emt 0:05:06]} 10. Nxc6 {[%emt 0:23:13]} bxc6 {[%emt 0:00:03]} 11. h4 {[%emt 0:03:22]} Nd4 {[%emt 0:09:57]} 12. h5 {[%emt 0:01:25]} e5 {[%emt 0:02:49]} 13. b3 {[%emt 0:03:48]} Bd6 {[%emt 0:08:13]} 14. Na4 {[%emt 0:06:51]} O-O {[%emt 0:01:49]} 15. Ba3 {[%emt 0:01:29]} Kh8 {[%emt 0:01:16]} 16. h6 {[%emt 0:00:33]} g6 {[%emt 0:02:25]} 17. Bxc5 {[%emt 0:00:15]} Bxc5 {[%emt 0:01:11]} 18. Nxc5 {[%emt 0:00:06]} Qe7 {[%emt 0:11:53]} 19. b4 {[%emt 0:02:44]} a5 {[%emt 0:02:07]} 20. Nb3 {[%emt 0:00:56]} Qxb4 {[%emt 0:01:52]} 21. Rc1 {[%emt 0:01:13]} Ne6 {[%emt 0:02:00]} 22. Qf3 {[%emt 0:07:07]} f6 {[%emt 0:03:52]} 23. Qc3 {[%emt 0:02:56]} Qxc3 {[%emt 0:02:50]} 24. Rxc3 {[%emt 0:00:04]} a4 {[%emt 0:01:49]} 25. Bxe6 {[%emt 0:01:38]} Bxe6 {[%emt 0:00:15]} 26. Nc5 {[%emt 0:02:00]} Bxa2 {[%emt 0:00:33]} 27. Ke2 {[%emt 0:00:28]} Rfd8 {[%emt 0:05:21]} 28. Ra1 {[%emt 0:00:31]} Bf7 {[%emt 0:00:07]} 29. Rxa4 {[%emt 0:00:34]} Rxa4 {[%emt 0:00:39]} 30. Nxa4 {[%emt 0:00:02]} Kg8 {[%emt 0:03:40]} 31. Nc5 {[%emt 0:00:39]} Re8 {[%emt 0:06:48]} 32. Nd7 {[%emt 0:01:47]} Re6 {[%emt 0:00:06]} 33. Rf3 {[%emt 0:00:13]} f5 {[%emt 0:00:53]} 34. exf5 {[%emt 0:00:10]} gxf5 {[%emt 0:00:09]} 35. Rxf5 {[%emt 0:00:15]} Rxh6 {[%emt 0:00:13]} 36. Rg5+ {[%emt 0:00:24]} Kh8 {[%emt 0:00:54]} 37. Nxe5 {[%emt 0:00:06]} Bd5 {[%emt 0:00:30]} 38. f3 {[%emt 0:01:24]} Rh1 {[%emt 0:00:44]} 39. Ng4 {[%emt 0:00:33]} Rc1 {[%emt 0:03:00]} 40. Kd3 {[%emt 0:00:34]} Rg1 {[%emt 0:01:33]} 41. Nf6 {[%emt 0:02:07]} Bf7 {[%emt 0:00:04]} 42. Kd4 {[%emt 0:04:17]} Bg6 {[%emt 0:04:11]} 43. Nd7 {[%emt 0:01:33]} Kg7 {[%emt 0:00:20]} 44. Ne5 {[%emt 0:00:59]} Kf6 {[%emt 0:01:04]} 45. f4 {[%emt 0:00:12]} Rd1 {[%emt 0:02:56]} 46. d3 {[%emt 0:01:01]} c5+ {[%emt 0:01:48]} 47. Ke3 {[%emt 0:00:09]} Bf5 {[%emt 0:01:21]} 48. g4 {[%emt 0:00:45]} Re1+ {[%emt 0:00:13]} 49. Kf3 {[%emt 0:01:27]} Rxe5 {[%emt 0:00:03]} 50. gxf5 {[%emt 0:00:11]} Rxf5 {[%emt 0:02:13]} 51. Rg8 {[%emt 0:01:11]} Rd5 {[%emt 0:00:08]} 52. Ke4 {[%emt 0:00:03]} Rd4+ {[%emt 0:00:04]} 53. Ke3 {[%emt 0:00:07]} Rd5 {[%emt 0:00:23]} 54. Ke4 {[%emt 0:05:37]} Rd4+ {[%emt 0:00:03]} 55. Ke3 {[%emt 0:00:03]} Rd5 {[%emt 0:00:03]} 56. Ke4 {[%emt 0:00:04] Ke5+} 1/2-1/2

[Event "6th Porticcio Open 2019"]
[Site "Porticcio"]
[Date "2019.07.05"]
[Round "8.3"]
[White "Donchenko, Alexander"]
[Black "Vocaturo, Daniele"]
[Result "1/2-1/2"]
[ECO "A04"]
[WhiteElo "2618"]
[BlackElo "2612"]
[Annotator "RC"]
[PlyCount "81"]
[EventDate "2019.06.23"]
[EventType "swiss"]
[EventCountry "FRA"]
[SourceTitle "playchess.com"]
[Source "ChessBase"]
[SourceQuality "1"]
[TimeControl "5400+30"]

1. Nf3 {[%emt 0:00:00]} c5 {[%emt 0:00:00]} 2. c4 {[%emt 0:00:00]} Nc6 {[%emt 0:00:30]} 3. Nc3 {[%emt 0:00:00]} g6 {[%emt 0:01:09]} 4. e3 {[%emt 0:00:33]} Nf6 {[%emt 0:00:39]} 5. d4 {[%emt 0:00:06]} cxd4 {[%emt 0:00:07]} 6. exd4 {[%emt 0:00:05]} d5 {[%emt 0:00:24]} 7. cxd5 {[%emt 0:00:09]} Nxd5 {[%emt 0:00:07]} 8. Qb3 {[%emt 0:00:05]} Nxc3 {[%emt 0:01:36]} 9. Bc4 {[%emt 0:00:07]} e6 {[%emt 0:00:43]} 10. bxc3 {[%emt 0:00:07]} Bd7 {[%emt 0:00:15]} 11. Be2 {[%emt 0:00:16]} Na5 {[%emt 0:01:11]} 12. Qb1 {[%emt 0:00:52]} Rc8 {[%emt 0:02:06]} 13. O-O {[%emt 0:00:37]} Bg7 {[%emt 0:01:33]} 14. Ba3 {[%emt 0:22:23]} Bf8 {[%emt 0:00:18]} 15. Bb4 {[%emt 0:00:53]} Bxb4 {[%emt 0:00:59]} 16. Qxb4 {[%emt 0:00:36]} b6 {[%emt 0:00:32]} 17. d5 {[%emt 0:01:11]} Rc5 {[%emt 0:06:07]} 18. dxe6 {[%emt 0:18:18]} Bxe6 {[%emt 0:00:56]} 19. Rad1 {[%emt 0:06:11]} Qf6 {[%emt 0:04:44]} 20. Nd2 {[%emt 0:01:19]} Qxc3 {[%emt 0:09:55]} 21. Qh4 {[%emt 0:10:43]} Qe5 {[%emt 0:15:16]} 22. Nf3 {[%emt 0:07:32]} Qc7 {[%emt 0:01:04]} 23. Ng5 {[%emt 0:04:55]} Qe7 {[%emt 0:08:02]} 24. Qa4+ {[%emt 0:00:57]} Bd7 {[%emt 0:05:39]} 25. Qd4 {[%emt 0:05:43]} O-O {[%emt 0:00:53]} 26. Qxd7 {[%emt 0:00:54]} Qxd7 {[%emt 0:20:02]} 27. Rxd7 {[%emt 0:00:10]} Rxg5 {[%emt 0:00:04]} 28. Rc1 {[%emt 0:02:53]} Re5 {[%emt 0:03:17]} 29. Bf3 {[%emt 0:00:33]} Rfe8 {[%emt 0:02:03]} 30. h4 {[%emt 0:00:09]} R8e7 {[%emt 0:02:49]} 31. Rcc7 {[%emt 0:00:10]} Rxd7 {[%emt 0:00:07]} 32. Rxd7 {[%emt 0:00:02]} Kf8 {[%emt 0:00:07]} 33. Rxa7 {[%emt 0:00:18]} Nc4 {[%emt 0:00:10]} 34. Rc7 {[%emt 0:01:39]} Nd2 {[%emt 0:02:24]} 35. Bb7 {[%emt 0:00:25]} Re1+ {[%emt 0:02:12]} 36. Kh2 {[%emt 0:00:02]} Nf1+ {[%emt 0:00:33]} 37. Kg1 {[%emt 0:05:50]} Ne3+ {[%emt 0:00:18]} 38. Kh2 {[%emt 0:00:02]} Nf1+ {[%emt 0:00:05]} 39. Kg1 {[%emt 0:01:07]} Ne3+ {[%emt 0:00:07]} 40. Kh2 {[%emt 0:00:04]} Nf1+ {[%emt 0:00:07]} 41. Kg1 {[%emt 0:00:04]} 1/2-1/2

[Event "6th Porticcio Open 2019"]
[Site "Porticcio"]
[Date "2019.07.05"]
[Round "8.5"]
[White "Kirk, Ezra"]
[Black "Krasenkow, Michal"]
[Result "0-1"]
[ECO "B30"]
[WhiteElo "2428"]
[BlackElo "2620"]
[Annotator "RC"]
[PlyCount "114"]
[EventDate "2019.06.23"]
[EventType "swiss"]
[EventCountry "FRA"]
[SourceTitle "playchess.com"]
[Source "ChessBase"]
[SourceQuality "1"]
[TimeControl "5400+30"]

1. e4 {[%emt 0:01:08]} c5 {[%emt 0:00:00]} 2. Nf3 {[%emt 0:00:13]} Nc6 {[%emt 0:00:00]} 3. Bb5 {[%emt 0:00:25]} e6 {[%emt 0:00:00]} 4. O-O {[%emt 0:00:43]} Nge7 {[%emt 0:00:00]} 5. d4 {[%emt 0:01:08]} cxd4 {[%emt 0:00:06]} 6. Nxd4 {[%emt 0:00:07]} Qb6 {[%emt 0:04:23]} 7. Nxc6 {[%emt 0:01:49]} bxc6 {[%emt 0:00:05]} 8. Bd3 {[%emt 0:00:06]} Ng6 {[%emt 0:00:03]} 9. c4 {[%emt 0:02:26]} Be7 {[%emt 0:00:47]} 10. Nc3 {[%emt 0:02:06]} O-O {[%emt 0:03:00]} 11. Rb1 {[%emt 0:01:31]} e5 {[%emt 0:18:20]} 12. b4 {[%emt 0:11:22]} d6 {[%emt 0:02:37]} 13. Be3 {[%emt 0:03:59]} Qc7 {[%emt 0:00:29]} 14. Qd2 {[%emt 0:01:23]} Be6 {[%emt 0:03:41]} 15. a4 {[%emt 0:09:14]} Rfc8 {[%emt 0:04:22]} 16. Rfc1 {[%emt 0:13:23]} Qd7 {[%emt 0:01:03]} 17. f3 {[%emt 0:01:54]} Bd8 {[%emt 0:05:34]} 18. Rd1 {[%emt 0:04:44]} Bb6 {[%emt 0:04:07]} 19. Bf1 {[%emt 0:02:53]} Bxe3+ {[%emt 0:02:18]} 20. Qxe3 {[%emt 0:00:22]} Qe7 {[%emt 0:00:50]} 21. a5 {[%emt 0:06:01]} h5 {[%emt 0:01:56]} 22. Qd2 {[%emt 0:06:57]} Rd8 {[%emt 0:06:13]} 23. b5 {[%emt 0:01:02]} h4 {[%emt 0:01:34]} 24. Kh1 {[%emt 0:04:16]} Rac8 {[%emt 0:03:37]} 25. b6 {[%emt 0:02:38]} axb6 {[%emt 0:00:17]} 26. axb6 {[%emt 0:00:13]} Rb8 {[%emt 0:02:11]} 27. Rb2 {[%emt 0:08:41]} Rd7 {[%emt 0:03:47]} 28. Nd5 {[%emt 0:02:41]} cxd5 {[%emt 0:03:56]} 29. cxd5 {[%emt 0:00:04]} Rdb7 30. dxe6 {[%emt 0:00:14]} Rxb6 {[%emt 0:00:31]} 31. Rxb6 {[%emt 0:01:15]} Rxb6 {[%emt 0:00:13]} 32. exf7+ {[%emt 0:03:04]} Qxf7 {[%emt 0:00:10]} 33. Qg5 {[%emt 0:01:30]} Rc6 {[%emt 0:01:03]} 34. Qd8+ {[%emt 0:01:08]} Kh7 {[%emt 0:02:23]} 35. Bb5 {[%emt 0:00:55]} Qb3 {[%emt 0:00:25]} 36. Be2 {[%emt 0:02:49]} Qc2 {[%emt 0:00:40]} 37. Qg5 {[%emt 0:03:20]} Qxe2 {[%emt 0:00:07]} 38. Ra1 {[%emt 0:00:14]} Nf8 {[%emt 0:03:26]} 39. h3 {[%emt 0:00:31]} Qf2 {[%emt 0:03:06]} 40. Kh2 {[%emt 0:00:06]} Qg3+ {[%emt 0:02:30]} 41. Qxg3 {[%emt 0:00:06]} hxg3+ {[%emt 0:00:05]} 42. Kxg3 {[%emt 0:00:05]} Rc2 {[%emt 0:01:58]} 43. Rd1 {[%emt 0:00:51]} Ne6 {[%emt 0:00:38]} 44. Rxd6 {[%emt 0:00:12]} Nf4 {[%emt 0:00:04]} 45. Kg4 {[%emt 0:00:05]} Rxg2+ {[%emt 0:00:15]} 46. Kf5 {[%emt 0:00:08]} Ng6 {[%emt 0:01:03]} 47. h4 {[%emt 0:00:29]} Rg3 {[%emt 0:00:16]} 48. f4 {[%emt 0:00:31]} Nxf4 {[%emt 0:03:50]} 49. Kxe5 {[%emt 0:00:09]} Ng6+ {[%emt 0:00:06]} 50. Kf5 {[%emt 0:00:26]} Nxh4+ {[%emt 0:00:17]} 51. Kf4 {[%emt 0:00:05]} Rg1 {[%emt 0:00:09]} 52. Rd5 {[%emt 0:01:45]} Kh6 {[%emt 0:00:36]} 53. Rd8 {[%emt 0:00:14]} g5+ {[%emt 0:00:25]} 54. Ke5 {[%emt 0:00:18]} Ng6+ {[%emt 0:00:33]} 55. Ke6 {[%emt 0:00:45]} Rg4 {[%emt 0:01:39]} 56. Rd4 {[%emt 0:01:25]} Rf4 {[%emt 0:00:08]} 57. Ra4 {[%emt 0:00:39]} g4 {[%emt 0:00:21]} 0-1